fUSD/lending_fUSD_20260621
["ID","MTS","AMOUNT","RATE_DAILY","PERIOD"]
[425906536,1782033077000,-509.99419187,0.00028767,2]
[425906540,1782033077000,-661.95,0.00028767,2]
[425906521,1782033077000,-500.0,0.00028767,2]
[425906518,1782033077000,-784.62,0.00028767,2]
[425906511,1782033077000,-500.0,0.00028767,2]
[425906487,1782033077000,-550.74,0.00028767,2]
[425906484,1782033077000,-516.55,0.00028767,2]
[425906485,1782033077000,-500.0,0.00028767,2]
[425906483,1782033077000,-500.0,0.00028767,2]
[425906486,1782033077000,-612.83,0.00028767,2]
[425906492,1782033077000,-500.0,0.00028767,2]
[425906493,1782033077000,-921.72,0.00028767,2]
[425906491,1782033077000,-509.25,0.00028767,2]
[425906504,1782033077000,-1066.62,0.00028767,2]
[425906519,1782033077000,-664.29,0.00028767,2]
[425906496,1782033077000,-500.0,0.00028767,2]
[425906494,1782033077000,-500.0,0.00028767,2]
[425906502,1782033077000,-582.99,0.00028767,2]
[425906500,1782033077000,-500.0,0.00028767,2]
[425906501,1782033077000,-500.0,0.00028767,2]
[425906503,1782033077000,-500.0,0.00028767,2]
[425906497,1782033077000,-500.0,0.00028767,2]
[425906513,1782033077000,-629.68,0.00028767,2]
[425906512,1782033077000,-500.0,0.00028767,2]
[425906498,1782033077000,-500.0,0.00028767,2]
[425906515,1782033077000,-500.0,0.00028767,2]
[425906510,1782033077000,-433.81147534,0.00028767,2]
[425906509,1782033077000,-500.0,0.00028767,2]
[425906516,1782033077000,-500.0,0.00028767,2]
[425906514,1782033077000,-500.0,0.00028767,2]
[425906517,1782033077000,-500.0,0.00028767,2]
[425906508,1782033077000,-500.0,0.00028767,2]
[425906507,1782033077000,-457.47628436,0.00028767,2]
[425906505,1782033077000,-500.0,0.00028767,2]
[425906499,1782033077000,-500.0,0.00028767,2]
[425906506,1782033077000,-603.17,0.00028767,2]
[425906559,1782033078000,-500.0,0.00028767,2]
[425906569,1782033078000,-500.0,0.00028767,2]
[425906570,1782033078000,-1229.86,0.00028767,2]
[425906560,1782033078000,-859.42,0.00028767,2]
[425906558,1782033078000,-500.0,0.00028767,2]
[425906552,1782033078000,-500.0,0.00028767,2]
[425906554,1782033078000,-667.5,0.00028767,2]
[425906557,1782033078000,-500.0,0.00028767,2]
[425906556,1782033078000,-1516.79,0.00028767,2]
[425906555,1782033078000,-500.0,0.00028767,2]
[425906562,1782033078000,-500.0,0.00028767,2]
[425906553,1782033078000,-349.25374443,0.00028767,2]
[425906564,1782033078000,-500.0,0.00028767,2]
[425906563,1782033078000,-500.0,0.00028767,2]
[425906571,1782033078000,-500.0,0.00028767,2]
[425906575,1782033078000,-87.94171486,0.00028767,2]
[425906573,1782033078000,-40687.380737,0.00028767,2]
[425906572,1782033078000,-803.37,0.00028767,2]
[425906574,1782033078000,-500.0,0.00028767,2]
[425906566,1782033078000,-500.0,0.00028767,2]
[425906565,1782033078000,-500.0,0.00028767,2]
[425906561,1782033078000,-500.0,0.00028767,2]
[425906568,1782033078000,-500.0,0.00028767,2]
[425906567,1782033078000,-500.0,0.00028767,2]
[425906622,1782033079000,-500.0,0.00028767,2]
[425906617,1782033079000,-782.46,0.00028767,2]
[425906615,1782033079000,-79.71681621,0.00028767,2]
[425906614,1782033079000,-1574.14,0.00028767,2]
[425906612,1782033079000,-500.0,0.00028767,2]
[425906607,1782033079000,-500.0,0.00028767,2]
[425906621,1782033079000,-500.0,0.00028767,2]
[425906610,1782033079000,-1114.23,0.00028767,2]
[425906605,1782033079000,-500.0,0.00028767,2]
[425906619,1782033079000,-500.0,0.00028767,2]
[425906611,1782033079000,-500.0,0.00028767,2]
[425906616,1782033079000,-420.28318379,0.00028767,2]
[425906625,1782033079000,-500.0,0.00028767,2]
[425906618,1782033079000,-539.05,0.00028767,2]
[425906620,1782033079000,-500.0,0.00028767,2]
[425906623,1782033079000,-500.0,0.00028767,2]
[425906606,1782033079000,-556.35,0.00028767,2]
[425906629,1782033079000,-500.0,0.00028767,2]
[425906635,1782033079000,-572.27,0.00028767,2]
[425906626,1782033079000,-519.31,0.00028767,2]
[425906634,1782033079000,-500.0,0.00028767,2]
[425906627,1782033079000,-1113.05,0.00028767,2]
[425906633,1782033079000,-500.0,0.00028767,2]
[425906624,1782033079000,-500.0,0.00028767,2]
[425906628,1782033079000,-500.0,0.00028767,2]
[425906613,1782033079000,-500.0,0.00028767,2]
[425906608,1782033079000,-500.0,0.00028767,2]
[425906600,1782033079000,-401.38700776,0.00028767,2]
[425906598,1782033079000,-500.0,0.00028767,2]
[425906577,1782033079000,-412.05828514,0.00028767,2]
[425906576,1782033079000,-500.0,0.00027397,2]
[425906579,1782033079000,-500.0,0.00028767,2]
[425906578,1782033079000,-500.0,0.00028767,2]
[425906582,1782033079000,-500.0,0.00028767,2]
[425906580,1782033079000,-247.6349858,0.00028767,2]
[425906581,1782033079000,-470.7050142,0.00028767,2]
[425906583,1782033079000,-39.61982068,0.00028767,2]
[425906584,1782033079000,-500.0,0.00027397,2]
[425906585,1782033079000,-331.19260517,0.00028767,2]
[425906597,1782033079000,-114.17321338,0.00028767,2]
[425906586,1782033079000,-129.18757415,0.00028767,2]
[425906588,1782033079000,-507.61,0.00028767,2]
[425906587,1782033079000,-500.0,0.00028767,2]
[425906589,1782033079000,-512.8,0.00028767,2]
[425906590,1782033079000,-500.0,0.00028767,2]
[425906592,1782033079000,-500.0,0.00028767,2]
[425906591,1782033079000,-172.28063923,0.00028767,2]
[425906593,1782033079000,-500.0,0.00028767,2]
[425906596,1782033079000,-795.46,0.00027397,2]
[425906594,1782033079000,-385.82678662,0.00028767,2]
[425906595,1782033079000,-500.0,0.00027397,2]
[425906601,1782033079000,-676.98,0.00028767,2]
[425906630,1782033079000,-500.0,0.00028767,2]
[425906604,1782033079000,-500.0,0.00028767,2]
[425906599,1782033079000,-98.61299224,0.00028767,2]
[425906603,1782033079000,-476.85293917,0.00028767,2]
[425906602,1782033079000,-185.14706083,0.00028767,2]
[425906632,1782033079000,-500.0,0.00028767,2]
[425906609,1782033079000,-203.47,0.00028767,2]
[425906637,1782033079000,-1053.37,0.00028767,2]
[425906667,1782033079000,-500.0,0.00028767,2]
[425906665,1782033079000,-500.0,0.00028767,2]
[425906666,1782033079000,-476.983084,0.00028767,2]
[425906668,1782033079000,-500.0,0.00028767,2]
[425906672,1782033079000,-1051.17,0.00028767,2]
[425906670,1782033079000,-500.0,0.00028767,2]
[425906669,1782033079000,-500.0,0.00028767,2]
[425906673,1782033079000,-1096.97,0.00028767,2]
[425906671,1782033079000,-4516.02,0.00028767,2]
[425906679,1782033079000,-500.0,0.00028767,2]
[425906677,1782033079000,-500.0,0.00028767,2]
[425906682,1782033079000,-1066.54,0.00028767,2]
[425906681,1782033079000,-500.0,0.00028767,2]
[425906689,1782033079000,-966.14,0.00028767,2]
[425906683,1782033079000,-469.44007265,0.00028767,2]
[425906686,1782033079000,-500.0,0.00028767,2]
[425906684,1782033079000,-500.0,0.00028767,2]
[425906678,1782033079000,-500.0,0.00028767,2]
[425906688,1782033079000,-500.0,0.00028767,2]
[425906687,1782033079000,-743.54,0.00028767,2]
[425906685,1782033079000,-497.84543146,0.00028767,2]
[425906691,1782033079000,-512.14,0.00028767,2]
[425906692,1782033079000,-4073.97,0.00028767,2]
[425906694,1782033079000,-2735.23,0.00028767,2]
[425906690,1782033079000,-1401.64,0.00028767,2]
[425906693,1782033079000,-563.40087032,0.00028767,2]
[425906631,1782033079000,-500.0,0.00028767,2]
[425906663,1782033079000,-500.0,0.00028767,2]
[425906674,1782033079000,-500.0,0.00028767,2]
[425906680,1782033079000,-500.0,0.00028767,2]
[425906676,1782033079000,-500.0,0.00028767,2]
[425906647,1782033079000,-500.0,0.00028767,2]
[425906675,1782033079000,-513.5,0.00028767,2]
[425906648,1782033079000,-500.0,0.00028767,2]
[425906649,1782033079000,-565.61,0.00028767,2]
[425906636,1782033079000,-500.0,0.00028767,2]
[425906638,1782033079000,-500.0,0.00028767,2]
[425906639,1782033079000,-500.0,0.00028767,2]
[425906640,1782033079000,-500.0,0.00028767,2]
[425906644,1782033079000,-500.0,0.00028767,2]
[425906643,1782033079000,-500.0,0.00028767,2]
[425906642,1782033079000,-500.0,0.00028767,2]
[425906641,1782033079000,-500.0,0.00028767,2]
[425906645,1782033079000,-500.0,0.00028767,2]
[425906650,1782033079000,-500.0,0.00028767,2]
[425906646,1782033079000,-622.33,0.00028767,2]
[425906654,1782033079000,-500.0,0.00028767,2]
[425906664,1782033079000,-500.0,0.00028767,2]
[425906658,1782033079000,-1043.69,0.00028767,2]
[425906660,1782033079000,-714.11,0.00028767,2]
[425906657,1782033079000,-704.57,0.00028767,2]
[425906662,1782033079000,-500.0,0.00028767,2]
[425906652,1782033079000,-1419.48,0.00028767,2]
[425906659,1782033079000,-500.0,0.00028767,2]
[425906653,1782033079000,-405.16158222,0.00028767,2]
[425906655,1782033079000,-762.22,0.00028767,2]
[425906661,1782033079000,-966.1,0.00028767,2]
[425906651,1782033079000,-500.0,0.00028767,2]
[425906656,1782033079000,-580.53078941,0.00028767,2]
[425906730,1782033080000,-537.11,0.00028767,2]
[425906741,1782033080000,-500.0,0.00028767,2]
[425906742,1782033080000,-516.52,0.00028767,2]
[425906736,1782033080000,-500.0,0.00028767,2]
[425906740,1782033080000,-500.0,0.00028767,2]
[425906737,1782033080000,-567.94,0.00028767,2]
[425906732,1782033080000,-1548.3,0.00028767,2]
[425906738,1782033080000,-500.0,0.00028767,2]
[425906734,1782033080000,-1301.74,0.00028767,2]
[425906735,1782033080000,-662.83,0.00028767,2]
[425906731,1782033080000,-254.35337087,0.00028767,2]
[425906733,1782033080000,-500.0,0.00028767,2]
[425906739,1782033080000,-1666.17,0.00028767,2]
[425906754,1782033080000,-964.45,0.00028767,2]
[425906758,1782033080000,-500.0,0.00028767,2]
[425906755,1782033080000,-1493.19,0.00028767,2]
[425906746,1782033080000,-391.01191,0.00028767,2]
[425906743,1782033080000,-500.0,0.00028767,2]
[425906745,1782033080000,-500.0,0.00028767,2]
[425906750,1782033080000,-500.0,0.00028767,2]
[425906747,1782033080000,-500.0,0.00028767,2]
[425906752,1782033080000,-595.47,0.00028767,2]
[425906748,1782033080000,-717.52,0.00028767,2]
[425906751,1782033080000,-1068.12,0.00028767,2]
[425906749,1782033080000,-586.71,0.00028767,2]
[425906753,1782033080000,-500.0,0.00028767,2]
[425906765,1782033080000,-772.6,0.00028767,2]
[425906759,1782033080000,-500.0,0.00028767,2]
[425906729,1782033080000,-509.56,0.00028767,2]
[425906744,1782033080000,-969.71,0.00028767,2]
[425906722,1782033080000,-500.0,0.00028767,2]
[425906702,1782033080000,-500.0,0.00028767,2]
[425906725,1782033080000,-500.0,0.00028767,2]
[425906699,1782033080000,-500.0,0.00028767,2]
[425906701,1782033080000,-744.26,0.00028767,2]
[425906696,1782033080000,-500.0,0.00028767,2]
[425906697,1782033080000,-500.0,0.00028767,2]
[425906698,1782033080000,-500.0,0.00028767,2]
[425906695,1782033080000,-1496.3,0.00028767,2]
[425906703,1782033080000,-920.55,0.00028767,2]
[425906704,1782033080000,-500.0,0.00028767,2]
[425906762,1782033080000,-500.0,0.00028767,2]
[425906710,1782033080000,-500.0,0.00028767,2]
[425906714,1782033080000,-500.0,0.00028767,2]
[425906713,1782033080000,-606.32,0.00028767,2]
[425906707,1782033080000,-500.0,0.00028767,2]
[425906715,1782033080000,-1115.01,0.00028767,2]
[425906711,1782033080000,-500.0,0.00028767,2]
[425906705,1782033080000,-500.0,0.00028767,2]
[425906709,1782033080000,-2160.34,0.00028767,2]
[425906708,1782033080000,-4215.0,0.00028767,2]
[425906712,1782033080000,-500.0,0.00028767,2]
[425906716,1782033080000,-596.87,0.00028767,2]
[425906726,1782033080000,-500.0,0.00028767,2]
[425906721,1782033080000,-500.0,0.00028767,2]
[425906717,1782033080000,-500.0,0.00028767,2]
[425906719,1782033080000,-308.78079043,0.00028767,2]
[425906718,1782033080000,-500.0,0.00028767,2]
[425906700,1782033080000,-215.19602582,0.00028767,2]
[425906724,1782033080000,-831.38,0.00028767,2]
[425906728,1782033080000,-500.0,0.00028767,2]
[425906727,1782033080000,-500.0,0.00028767,2]
[425906723,1782033080000,-500.0,0.00028767,2]
[425906756,1782033080000,-1012.15,0.00028767,2]
[425906706,1782033080000,-500.0,0.00028767,2]
[425906763,1782033080000,-836.7,0.00028767,2]
[425906797,1782033080000,-500.0,0.00028767,2]
[425906799,1782033080000,-500.0,0.00028767,2]
[425906808,1782033080000,-500.0,0.00028767,2]
[425906796,1782033080000,-650.62,0.00028767,2]
[425906800,1782033080000,-265.03,0.00028767,2]
[425906801,1782033080000,-500.0,0.00028767,2]
[425906798,1782033080000,-500.0,0.00028767,2]
[425906804,1782033080000,-500.0,0.00028767,2]
[425906806,1782033080000,-500.0,0.00028767,2]
[425906802,1782033080000,-500.0,0.00028767,2]
[425906803,1782033080000,-500.0,0.00028767,2]
[425906805,1782033080000,-500.0,0.00028767,2]
[425906809,1782033080000,-500.0,0.00028767,2]
[425906812,1782033080000,-539.64,0.00028767,2]
[425906807,1782033080000,-500.0,0.00028767,2]
[425906810,1782033080000,-2819.93,0.00028767,2]
[425906811,1782033080000,-500.0,0.00028767,2]
[425906819,1782033080000,-651.67,0.00028767,2]
[425906820,1782033080000,-500.0,0.00028767,2]
[425906821,1782033080000,-500.0,0.00028767,2]
[425906818,1782033080000,-500.0,0.00028767,2]
[425906815,1782033080000,-500.0,0.00028767,2]
[425906816,1782033080000,-500.0,0.00028767,2]
[425906814,1782033080000,-500.0,0.00028767,2]
[425906817,1782033080000,-500.0,0.00028767,2]
[425906823,1782033080000,-629.92,0.00028767,2]
[425906822,1782033080000,-500.0,0.00028767,2]
[425906825,1782033080000,-500.0,0.00028767,2]
[425906824,1782033080000,-500.0,0.00028767,2]
[425906757,1782033080000,-500.0,0.00028767,2]
[425906813,1782033080000,-500.0,0.00028767,2]
[425906792,1782033080000,-500.0,0.00028767,2]
[425906720,1782033080000,-500.0,0.00028767,2]
[425906788,1782033080000,-566.65,0.00028767,2]
[425906760,1782033080000,-500.0,0.00028767,2]
[425906761,1782033080000,-500.0,0.00028767,2]
[425906767,1782033080000,-500.0,0.00028767,2]
[425906766,1782033080000,-1073.5,0.00028767,2]
[425906764,1782033080000,-500.0,0.00028767,2]
[425906768,1782033080000,-500.0,0.00028767,2]
[425906770,1782033080000,-503.69,0.00028767,2]
[425906780,1782033080000,-1050.19,0.00028767,2]
[425906781,1782033080000,-500.0,0.00028767,2]
[425906771,1782033080000,-911.52,0.00028767,2]
[425906782,1782033080000,-500.0,0.00028767,2]
[425906769,1782033080000,-500.0,0.00028767,2]
[425906772,1782033080000,-500.0,0.00028767,2]
[425906778,1782033080000,-254.60551309,0.00028767,2]
[425906779,1782033080000,-500.0,0.00028767,2]
[425906795,1782033080000,-500.0,0.00028767,2]
[425906774,1782033080000,-500.0,0.00028767,2]
[425906790,1782033080000,-1758.48,0.00028767,2]
[425906789,1782033080000,-500.0,0.00028767,2]
[425906784,1782033080000,-1121.32,0.00028767,2]
[425906793,1782033080000,-500.0,0.00028767,2]
[425906776,1782033080000,-500.0,0.00028767,2]
[425906791,1782033080000,-531.84,0.00028767,2]
[425906794,1782033080000,-3977.44,0.00028767,2]
[425906787,1782033080000,-853.34,0.00028767,2]
[425906783,1782033080000,-500.0,0.00028767,2]
[425906786,1782033080000,-1000.0,0.00028767,2]
[425906777,1782033080000,-3456.59,0.00028767,2]
[425906773,1782033080000,-500.0,0.00028767,2]
[425906775,1782033080000,-500.0,0.00028767,2]
[425906785,1782033080000,-566.31648872,0.00028767,2]
[425906870,1782033081000,-1500.0,0.00028954,10]
[425906866,1782033081000,-157.0,0.00028871,30]
[425906872,1782033081000,-4027.93,0.00029,2]
[425906867,1782033081000,-160.0,0.00028872,30]
[425906874,1782033081000,-5290.57936283,0.00029,2]
[425906849,1782033081000,-500.0,0.00028767,2]
[425906865,1782033081000,-165.37889936,0.00028871,30]
[425906864,1782033081000,-155.0,0.00028871,30]
[425906863,1782033081000,-160.40226915,0.00028871,30]
[425906859,1782033081000,-1005.02767128,0.00028828,2]
[425906854,1782033081000,-256.00921739,0.00028767,2]
[425906873,1782033081000,-162.0,0.00029,30]
[425906875,1782033081000,-7500.0,0.00029,2]
[425906876,1782033081000,-577.23976879,0.00029,2]
[425906877,1782033081000,-277.0,0.00029,2]
[425906868,1782033081000,-59491.67514473,0.0002888,60]
[425906871,1782033081000,-3431.96590456,0.00029,2]
[425906878,1782033081000,-3105.91816148,0.00029,2]
[425906888,1782033081000,-500.0,0.00029041,2]
[425906889,1782033081000,-1203.65,0.00029041,2]
[425906883,1782033081000,-500.0,0.00029041,2]
[425906879,1782033081000,-982.13,0.00029,7]
[425906881,1782033081000,-501.24203536,0.00029035,2]
[425906882,1782033081000,-501.82455083,0.00029041,2]
[425906884,1782033081000,-500.0,0.00029041,2]
[425906885,1782033081000,-534.17,0.00029041,2]
[425906886,1782033081000,-500.0,0.00029041,2]
[425906887,1782033081000,-500.0,0.00029041,2]
[425906853,1782033081000,-827.33,0.00028767,2]
[425906869,1782033081000,-162.0,0.00028949,3]
[425906855,1782033081000,-1181.09,0.00028767,2]
[425906845,1782033081000,-500.0,0.00028767,2]
[425906858,1782033081000,-11457.08917,0.000288,2]
[425906834,1782033081000,-550.42,0.00028767,2]
[425906833,1782033081000,-904.85,0.00028767,2]
[425906835,1782033081000,-500.0,0.00028767,2]
[425906830,1782033081000,-500.0,0.00028767,2]
[425906829,1782033081000,-500.0,0.00028767,2]
[425906827,1782033081000,-272.01582034,0.00028767,2]
[425906826,1782033081000,-500.0,0.00028767,2]
[425906832,1782033081000,-500.0,0.00028767,2]
[425906828,1782033081000,-500.0,0.00028767,2]
[425906831,1782033081000,-712.88,0.00028767,2]
[425906838,1782033081000,-500.0,0.00028767,2]
[425906844,1782033081000,-500.0,0.00028767,2]
[425906842,1782033081000,-1479.66,0.00028767,2]
[425906839,1782033081000,-1002.37,0.00028767,2]
[425906856,1782033081000,-2292.48,0.00028767,2]
[425906836,1782033081000,-500.0,0.00028767,2]
[425906897,1782033081000,-500.0,0.00029041,2]
[425906840,1782033081000,-500.0,0.00028767,2]
[425906847,1782033081000,-500.0,0.00028767,2]
[425906843,1782033081000,-2754.08,0.00028767,2]
[425906837,1782033081000,-500.0,0.00028767,2]
[425906841,1782033081000,-500.0,0.00028767,2]
[425906846,1782033081000,-791.72,0.00028767,2]
[425906850,1782033081000,-500.0,0.00028767,2]
[425906860,1782033081000,-158.0,0.00028871,30]
[425906852,1782033081000,-2177.43,0.00028767,2]
[425906851,1782033081000,-500.0,0.00028767,2]
[425906857,1782033081000,-506.67,0.00028767,2]
[425906862,1782033081000,-161.0,0.00028871,30]
[425906861,1782033081000,-160.0,0.00028871,30]
[425906848,1782033081000,-500.0,0.00028767,2]
[425906898,1782033081000,-780.63,0.00029041,2]
[425906880,1782033081000,-300.0,0.00029,2]
[425906896,1782033081000,-500.0,0.00029041,2]
[425906924,1782033081000,-819.65,0.00029041,2]
[425906926,1782033081000,-500.0,0.00029041,2]
[425906928,1782033081000,-500.0,0.00029041,2]
[425906942,1782033081000,-500.0,0.00029041,2]
[425906932,1782033081000,-500.0,0.00029041,2]
[425906933,1782033081000,-500.0,0.00029041,2]
[425906931,1782033081000,-500.0,0.00029041,2]
[425906935,1782033081000,-500.0,0.00029041,2]
[425906937,1782033081000,-500.0,0.00029041,2]
[425906934,1782033081000,-528.51,0.00029041,2]
[425906938,1782033081000,-975.96,0.00029041,2]
[425906940,1782033081000,-840.08,0.00029041,2]
[425906936,1782033081000,-500.0,0.00029041,2]
[425906939,1782033081000,-500.0,0.00029041,2]
[425906941,1782033081000,-577.92,0.00029041,2]
[425906943,1782033081000,-500.0,0.00029041,2]
[425906946,1782033081000,-500.0,0.00029041,2]
[425906957,1782033081000,-1165.13,0.00029041,2]
[425906958,1782033081000,-500.0,0.00029041,2]
[425906955,1782033081000,-500.0,0.00029041,2]
[425906956,1782033081000,-500.0,0.00029041,2]
[425906954,1782033081000,-1290.56,0.00029041,2]
[425906951,1782033081000,-924.09,0.00029041,2]
[425906919,1782033081000,-1264.4,0.00029041,2]
[425906952,1782033081000,-500.0,0.00029041,2]
[425906950,1782033081000,-500.0,0.00029041,2]
[425906895,1782033081000,-500.0,0.00029041,2]
[425906944,1782033081000,-500.0,0.00029041,2]
[425906947,1782033081000,-500.0,0.00029041,2]
[425906948,1782033081000,-1076.52,0.00029041,2]
[425906945,1782033081000,-1347.78,0.00029041,2]
[425906949,1782033081000,-1703.68,0.00029041,2]
[425906930,1782033081000,-500.0,0.00029041,2]
[425906953,1782033081000,-500.0,0.00029041,2]
[425906923,1782033081000,-500.0,0.00029041,2]
[425906890,1782033081000,-500.0,0.00029041,2]
[425906921,1782033081000,-500.0,0.00029041,2]
[425906892,1782033081000,-500.0,0.00029041,2]
[425906903,1782033081000,-500.0,0.00029041,2]
[425906900,1782033081000,-500.0,0.00029041,2]
[425906893,1782033081000,-793.21,0.00029041,2]
[425906902,1782033081000,-500.0,0.00029041,2]
[425906901,1782033081000,-500.0,0.00029041,2]
[425906891,1782033081000,-634.94,0.00029041,2]
[425906894,1782033081000,-500.0,0.00029041,2]
[425906909,1782033081000,-500.0,0.00029041,2]
[425906906,1782033081000,-500.0,0.00029041,2]
[425906915,1782033081000,-500.0,0.00029041,2]
[425906912,1782033081000,-500.0,0.00029041,2]
[425906904,1782033081000,-500.0,0.00029041,2]
[425906899,1782033081000,-578.39,0.00029041,2]
[425906917,1782033081000,-290.14602434,0.00029041,2]
[425906929,1782033081000,-500.0,0.00029041,2]
[425906916,1782033081000,-500.0,0.00029041,2]
[425906920,1782033081000,-635.9,0.00029041,2]
[425906927,1782033081000,-500.0,0.00029041,2]
[425906918,1782033081000,-475.79652677,0.00029041,2]
[425906911,1782033081000,-580.07,0.00029041,2]
[425906922,1782033081000,-500.0,0.00029041,2]
[425906914,1782033081000,-549.8908291,0.00029041,2]
[425906910,1782033081000,-500.0,0.00029041,2]
[425906905,1782033081000,-500.0,0.00029041,2]
[425906908,1782033081000,-500.0,0.00029041,2]
[425906925,1782033081000,-645.65,0.00029041,2]
[425906913,1782033081000,-500.0,0.00029041,2]
[425906907,1782033081000,-762.48,0.00029041,2]
[425906984,1782033082000,-500.0,0.00029041,2]
[425906986,1782033082000,-500.0,0.00029041,2]
[425906995,1782033082000,-500.0,0.00029041,2]
[425906989,1782033082000,-527.33537068,0.00029041,2]
[425906987,1782033082000,-591.97,0.00029041,2]
[425906993,1782033082000,-500.0,0.00029041,2]
[425906994,1782033082000,-500.0,0.00029041,2]
[425906988,1782033082000,-592.61,0.00029041,2]
[425906992,1782033082000,-530.82,0.00029041,2]
[425906990,1782033082000,-500.0,0.00029041,2]
[425907002,1782033082000,-658.23,0.00029041,2]
[425906998,1782033082000,-500.0,0.00029041,2]
[425907004,1782033082000,-516.55,0.00029041,2]
[425907001,1782033082000,-500.0,0.00029041,2]
[425907005,1782033082000,-500.0,0.00029041,2]
[425906968,1782033082000,-769.83,0.00029041,2]
[425907003,1782033082000,-500.0,0.00029041,2]
[425906999,1782033082000,-595.36,0.00029041,2]
[425906996,1782033082000,-500.0,0.00029041,2]
[425907006,1782033082000,-612.83,0.00029041,2]
[425906997,1782033082000,-500.0,0.00029041,2]
[425906985,1782033082000,-500.0,0.00029041,2]
[425906967,1782033082000,-716.64,0.00029041,2]
[425906972,1782033082000,-500.0,0.00029041,2]
[425907000,1782033082000,-500.0,0.00029041,2]
[425906965,1782033082000,-500.0,0.00029041,2]
[425906961,1782033082000,-898.43,0.00029041,2]
[425906970,1782033082000,-547.24,0.00029041,2]
[425906966,1782033082000,-500.0,0.00029041,2]
[425906969,1782033082000,-500.0,0.00029041,2]
[425906960,1782033082000,-500.0,0.00029041,2]
[425906959,1782033082000,-500.0,0.00029041,2]
[425906962,1782033082000,-500.0,0.00029041,2]
[425906964,1782033082000,-500.0,0.00029041,2]
[425906980,1782033082000,-500.0,0.00029041,2]
[425906963,1782033082000,-500.0,0.00029041,2]
[425906974,1782033082000,-504.3,0.00029041,2]
[425906973,1782033082000,-761.39,0.00029041,2]
[425906975,1782033082000,-500.0,0.00029041,2]
[425906977,1782033082000,-693.99,0.00029041,2]
[425906976,1782033082000,-500.0,0.00029041,2]
[425906982,1782033082000,-500.0,0.00029041,2]
[425906978,1782033082000,-500.0,0.00029041,2]
[425906979,1782033082000,-500.0,0.00029041,2]
[425906981,1782033082000,-500.0,0.00029041,2]
[425906983,1782033082000,-546.86,0.00029041,2]
[425906971,1782033082000,-500.0,0.00029041,2]
[425907007,1782033082000,-550.74,0.00029041,2]
[425906991,1782033082000,-500.0,0.00029041,2]
[425907012,1782033082000,-500.0,0.00029041,2]
[425907034,1782033082000,-500.0,0.00029041,2]
[425907043,1782033082000,-500.0,0.00029041,2]
[425907042,1782033082000,-568.75,0.00029041,2]
[425907041,1782033082000,-500.0,0.00029041,2]
[425907040,1782033082000,-737.18,0.00029041,2]
[425907039,1782033082000,-500.0,0.00029041,2]
[425907038,1782033082000,-500.0,0.00029041,2]